[Event "*** SCC Grand Prix: Titled Tuesday Blitz"]
[Site "Chess.com"]
[Date "2020.08.04"]
[Round "7"]
[White "spicycaterpillar"]
[Black "Artur0208"]
[Result "1-0"]
[WhiteElo "2988"]
[BlackElo "2774"]
[TimeControl "180+1"]
[EndTime "14:58:47 PDT"]
[Termination "spicycaterpillar won by resignation"]

1. e4 {[%clk 0:03:00.9]} 1... e5 {[%clk 0:02:58.7]} 2. Nf3 {[%clk 0:03:00.9]}
2... Nc6 {[%clk 0:02:58.7]} 3. d4 {[%clk 0:02:59.5]} 3... exd4 {[%clk 0:02:59]}
4. Nxd4 {[%clk 0:03:00.4]} 4... Nf6 {[%clk 0:02:59.7]} 5. Nxc6 {[%clk
0:03:00.7]} 5... bxc6 {[%clk 0:03:00.6]} 6. e5 {[%clk 0:03:01.4]} 6... Qe7
{[%clk 0:03:01.2]} 7. Qe2 {[%clk 0:03:01.9]} 7... Nd5 {[%clk 0:03:01.7]} 8. c4
{[%clk 0:03:02.5]} 8... Ba6 {[%clk 0:03:02]} 9. Nd2 {[%clk 0:02:58.1]} 9... g6
{[%clk 0:02:48.9]} 10. Ne4 {[%clk 0:02:56.2]} 10... Bg7 {[%clk 0:02:44.1]} 11.
Bg5 {[%clk 0:02:55]} 11... Qxe5 {[%clk 0:02:28.3]} 12. Nc5 {[%clk 0:02:50.9]}
12... Nb4 {[%clk 0:02:21.4]} 13. Qxe5+ {[%clk 0:02:38.3]} 13... Bxe5 {[%clk
0:02:22.3]} 14. O-O-O {[%clk 0:02:38.9]} 14... d6 {[%clk 0:02:18.6]} 15. Re1
{[%clk 0:02:29]} 15... Nxa2+ {[%clk 0:00:49.8]} 16. Kb1 {[%clk 0:02:20.5]} 16...
Nb4 {[%clk 0:00:49.1]} 17. Nxa6 {[%clk 0:02:15.2]} 17... Nxa6 {[%clk 0:00:47.6]}
18. f4 {[%clk 0:02:15.9]} 18... O-O {[%clk 0:00:42.9]} 19. fxe5 {[%clk
0:02:15.7]} 19... dxe5 {[%clk 0:00:43.8]} 20. Bf6 {[%clk 0:01:58.8]} 20... Rfe8
{[%clk 0:00:43.7]} 21. Rxe5 {[%clk 0:01:54.5]} 21... Rxe5 {[%clk 0:00:42.4]} 22.
Bxe5 {[%clk 0:01:55.4]} 22... Re8 {[%clk 0:00:43.3]} 23. Bc3 {[%clk 0:01:48.9]}
23... Nc5 {[%clk 0:00:43.8]} 24. Kc2 {[%clk 0:01:48.9]} 24... f5 {[%clk
0:00:41.5]} 25. Bd3 {[%clk 0:01:46.8]} 1-0

[Event "*** SCC Grand Prix: Titled Tuesday Blitz"]
[Site "Chess.com"]
[Date "2020.08.04"]
[Round "7"]
[White "praveenb2002"]
[Black "Koksik_13"]
[Result "1-0"]
[WhiteElo "2785"]
[BlackElo "2611"]
[TimeControl "180+1"]
[EndTime "14:59:12 PDT"]
[Termination "praveenb2002 won by checkmate"]

1. d4 {[%clk 0:03:00.9]} 1... e6 {[%clk 0:02:59.3]} 2. c4 {[%clk 0:02:59.4]}
2... d5 {[%clk 0:02:58.9]} 3. Nc3 {[%clk 0:02:59.5]} 3... a6 {[%clk 0:02:58.4]}
4. e4 {[%clk 0:02:54.4]} 4... dxc4 {[%clk 0:02:58.7]} 5. Bxc4 {[%clk 0:02:53.8]}
5... b5 {[%clk 0:02:58.7]} 6. Bd3 {[%clk 0:02:50.5]} 6... Bb7 {[%clk 0:02:55.4]}
7. Nf3 {[%clk 0:02:50.6]} 7... c5 {[%clk 0:02:42.3]} 8. d5 {[%clk 0:02:50]} 8...
exd5 {[%clk 0:02:38.4]} 9. exd5 {[%clk 0:02:50.9]} 9... b4 {[%clk 0:02:36.3]}
10. Ne4 {[%clk 0:02:42.3]} 10... Qxd5 {[%clk 0:02:31]} 11. O-O {[%clk
0:02:35.4]} 11... Be7 {[%clk 0:02:18.5]} 12. Qe2 {[%clk 0:02:34.3]} 12... Nc6
{[%clk 0:02:04.6]} 13. Rd1 {[%clk 0:02:30.9]} 13... Nd4 {[%clk 0:01:43.6]} 14.
Nxd4 {[%clk 0:02:30]} 14... cxd4 {[%clk 0:01:44.5]} 15. Bf4 {[%clk 0:02:26.7]}
15... Nf6 {[%clk 0:01:41.4]} 16. Nd6+ {[%clk 0:02:07.7]} 16... Kf8 {[%clk
0:01:38.8]} 17. Nxb7 {[%clk 0:02:08.1]} 17... Qxb7 {[%clk 0:01:39.7]} 18. Rac1
{[%clk 0:02:08.3]} 18... Re8 {[%clk 0:01:36.6]} 19. Rc7 {[%clk 0:02:04.3]} 19...
Qb6 {[%clk 0:01:13.2]} 20. Bc4 {[%clk 0:01:37.3]} 20... h6 {[%clk 0:00:40.2]}
21. Re1 {[%clk 0:01:34.5]} 21... g5 {[%clk 0:00:35.9]} 22. Rxe7 {[%clk
0:01:31.6]} 22... gxf4 {[%clk 0:00:25.2]} 23. Rxf7+ {[%clk 0:01:30.6]} 23... Kg8
{[%clk 0:00:24.4]} 24. Qg4+ {[%clk 0:01:29.7]} 24... Nxg4 {[%clk 0:00:22.3]} 25.
Rxe8# {[%clk 0:01:29.8]} 1-0

[Event "*** SCC Grand Prix: Titled Tuesday Blitz"]
[Site "Chess.com"]
[Date "2020.08.04"]
[Round "7"]
[White "DanielRensch"]
[Black "AvitalBor"]
[Result "0-1"]
[WhiteElo "2561"]
[BlackElo "2764"]
[TimeControl "180+1"]
[EndTime "14:59:23 PDT"]
[Termination "AvitalBor won by resignation"]

1. e4 {[%clk 0:02:54.7]} 1... e5 {[%clk 0:02:59.7]} 2. Nf3 {[%clk 0:02:52.9]}
2... Nc6 {[%clk 0:03:00.3]} 3. d4 {[%clk 0:02:52.2]} 3... exd4 {[%clk
0:03:00.2]} 4. Nxd4 {[%clk 0:02:52.6]} 4... g6 {[%clk 0:03:00.9]} 5. Nxc6 {[%clk
0:02:47.5]} 5... bxc6 {[%clk 0:03:01.8]} 6. Bc4 {[%clk 0:02:47.3]} 6... Bg7
{[%clk 0:03:00.9]} 7. O-O {[%clk 0:02:47.3]} 7... d6 {[%clk 0:02:58.6]} 8. f4
{[%clk 0:02:38.4]} 8... Rb8 {[%clk 0:02:36.2]} 9. Bb3 {[%clk 0:02:37.6]} 9...
Ne7 {[%clk 0:02:30.2]} 10. f5 {[%clk 0:02:37.1]} 10... gxf5 {[%clk 0:02:10]} 11.
Bg5 {[%clk 0:02:22.9]} 11... h6 {[%clk 0:02:03.7]} 12. Bh4 {[%clk 0:02:21.1]}
12... Qd7 {[%clk 0:01:42.6]} 13. Qh5 {[%clk 0:01:42.3]} 13... O-O {[%clk
0:01:39.9]} 14. Nd2 {[%clk 0:01:27.3]} 14... d5 {[%clk 0:01:28.5]} 15. e5 {[%clk
0:00:51.3]} 15... Ng6 {[%clk 0:01:11.9]} 16. Nf3 {[%clk 0:00:47.3]} 16... Nf4
{[%clk 0:00:58.4]} 0-1

[Event "*** SCC Grand Prix: Titled Tuesday Blitz"]
[Site "Chess.com"]
[Date "2020.08.04"]
[Round "7"]
[White "bazar-wokzal"]
[Black "kasparicy"]
[Result "1-0"]
[WhiteElo "2473"]
[BlackElo "2375"]
[TimeControl "180+1"]
[EndTime "14:59:30 PDT"]
[Termination "bazar-wokzal won by resignation"]

1. e4 {[%clk 0:03:00.9]} 1... c5 {[%clk 0:02:59.2]} 2. c3 {[%clk 0:03:00.5]}
2... d5 {[%clk 0:02:58]} 3. exd5 {[%clk 0:03:00.6]} 3... Nf6 {[%clk 0:02:58.6]}
4. Bb5+ {[%clk 0:03:00.1]} 4... Nbd7 {[%clk 0:02:59.1]} 5. c4 {[%clk 0:02:59.5]}
5... g6 {[%clk 0:02:59.4]} 6. Nf3 {[%clk 0:02:58.6]} 6... Bg7 {[%clk 0:02:59.6]}
7. O-O {[%clk 0:02:58.5]} 7... O-O {[%clk 0:03:00]} 8. Bxd7 {[%clk 0:02:57.7]}
8... Bxd7 {[%clk 0:03:00.3]} 9. Nc3 {[%clk 0:02:53.1]} 9... e6 {[%clk
0:03:00.5]} 10. d4 {[%clk 0:02:45.6]} 10... cxd4 {[%clk 0:02:59]} 11. Nxd4
{[%clk 0:02:45.8]} 11... exd5 {[%clk 0:02:49]} 12. cxd5 {[%clk 0:02:46.1]} 12...
Rc8 {[%clk 0:01:47.4]} 13. Bg5 {[%clk 0:02:44.4]} 13... h6 {[%clk 0:01:40.7]}
14. Bh4 {[%clk 0:02:44]} 14... g5 {[%clk 0:01:37.5]} 15. Bg3 {[%clk 0:02:44.1]}
15... Bg4 {[%clk 0:01:34.5]} 16. Qb3 {[%clk 0:02:35.8]} 16... Nxd5 {[%clk
0:01:28.8]} 17. Qxd5 {[%clk 0:02:30.5]} 17... Qxd5 {[%clk 0:01:24.4]} 18. Nxd5
{[%clk 0:02:29.7]} 18... Bxd4 {[%clk 0:01:25.3]} 19. Ne7+ {[%clk 0:02:29.8]}
19... Kg7 {[%clk 0:01:26.2]} 20. Nxc8 {[%clk 0:02:30]} 20... Rxc8 {[%clk
0:01:26.7]} 21. Rac1 {[%clk 0:02:24.7]} 21... Re8 {[%clk 0:01:17.8]} 22. Rfe1
{[%clk 0:02:21.7]} 22... Be6 {[%clk 0:01:17.6]} 23. Be5+ {[%clk 0:02:19.4]}
23... Bxe5 {[%clk 0:01:17.9]} 24. Rxe5 {[%clk 0:02:20.3]} 24... Rd8 {[%clk
0:01:18.5]} 25. h4 {[%clk 0:02:06.8]} 25... gxh4 {[%clk 0:01:05.3]} 26. Rc7
{[%clk 0:02:05.8]} 26... Bxa2 {[%clk 0:00:52.4]} 27. Rxb7 {[%clk 0:02:02.3]}
27... a6 {[%clk 0:00:53.3]} 28. Re4 {[%clk 0:01:53.3]} 28... Rd1+ {[%clk
0:00:50]} 29. Kh2 {[%clk 0:01:53]} 29... h3 {[%clk 0:00:37.5]} 30. Kxh3 {[%clk
0:01:42.3]} 30... h5 {[%clk 0:00:20]} 31. Re5 {[%clk 0:01:34.4]} 31... Be6+
{[%clk 0:00:17.7]} 32. Rxe6 {[%clk 0:01:33.3]} 1-0

[Event "*** SCC Grand Prix: Titled Tuesday Blitz"]
[Site "Chess.com"]
[Date "2020.08.04"]
[Round "7"]
[White "YIYUKI"]
[Black "djano"]
[Result "0-1"]
[WhiteElo "2291"]
[BlackElo "2423"]
[TimeControl "180+1"]
[EndTime "14:59:40 PDT"]
[Termination "djano won by resignation"]

1. e4 {[%clk 0:03:00.9]} 1... b6 {[%clk 0:02:57.5]} 2. d4 {[%clk 0:03:00.1]}
2... Bb7 {[%clk 0:02:57.8]} 3. Bd3 {[%clk 0:02:59.9]} 3... g6 {[%clk 0:02:56.9]}
4. c3 {[%clk 0:02:58.3]} 4... Bg7 {[%clk 0:02:57]} 5. Nf3 {[%clk 0:02:58.6]}
5... e6 {[%clk 0:02:57.2]} 6. Bg5 {[%clk 0:02:58.2]} 6... Ne7 {[%clk 0:02:54.2]}
7. Nbd2 {[%clk 0:02:56.2]} 7... h6 {[%clk 0:02:54.2]} 8. Bh4 {[%clk 0:02:55.6]}
8... d6 {[%clk 0:02:52.5]} 9. O-O {[%clk 0:02:54.2]} 9... Nd7 {[%clk 0:02:52.2]}
10. Re1 {[%clk 0:02:53.6]} 10... g5 {[%clk 0:02:48.4]} 11. Bg3 {[%clk
0:02:52.7]} 11... Ng6 {[%clk 0:02:48.7]} 12. Nc4 {[%clk 0:02:29.5]} 12... Qe7
{[%clk 0:02:30.3]} 13. e5 {[%clk 0:02:26.6]} 13... dxe5 {[%clk 0:02:03.1]} 14.
Nfxe5 {[%clk 0:02:17]} 14... Ngxe5 {[%clk 0:01:44.3]} 15. Nxe5 {[%clk
0:02:17.9]} 15... Nxe5 {[%clk 0:01:40]} 16. Bxe5 {[%clk 0:02:17.6]} 16... Bxe5
{[%clk 0:01:30.9]} 17. Rxe5 {[%clk 0:02:18.5]} 17... O-O-O {[%clk 0:01:30.6]}
18. Qe2 {[%clk 0:02:11.2]} 18... Qd6 {[%clk 0:01:26.3]} 19. Re1 {[%clk
0:02:08.2]} 19... Kb8 {[%clk 0:01:09.7]} 20. Re3 {[%clk 0:01:37.4]} 20... h5
{[%clk 0:00:54.6]} 21. Be4 {[%clk 0:01:36.9]} 21... g4 {[%clk 0:00:53.3]} 22.
Bxb7 {[%clk 0:01:36.1]} 22... Kxb7 {[%clk 0:00:54.2]} 23. a4 {[%clk 0:01:27]}
23... a5 {[%clk 0:00:52.9]} 24. Re5 {[%clk 0:01:22.1]} 24... Qc6 {[%clk
0:00:50.2]} 25. Qb5 {[%clk 0:01:16.1]} 25... Qxb5 {[%clk 0:00:48.1]} 26. axb5
{[%clk 0:01:17]} 26... Rd7 {[%clk 0:00:42.6]} 27. R1e3 {[%clk 0:01:12.2]} 27...
c6 {[%clk 0:00:40]} 28. bxc6+ {[%clk 0:01:10.4]} 28... Kxc6 {[%clk 0:00:40.9]}
29. f4 {[%clk 0:01:10.6]} 29... a4 {[%clk 0:00:32.6]} 30. Rf3 {[%clk 0:01:11.5]}
30... gxf3 {[%clk 0:00:31.9]} 0-1

[Event "*** SCC Grand Prix: Titled Tuesday Blitz"]
[Site "Chess.com"]
[Date "2020.08.04"]
[Round "7"]
[White "LubovMarkelova"]
[Black "Kavyev_Ruslan"]
[Result "1-0"]
[WhiteElo "2254"]
[BlackElo "2387"]
[TimeControl "180+1"]
[EndTime "14:59:41 PDT"]
[Termination "LubovMarkelova won by resignation"]

1. d4 {[%clk 0:03:00.9]} 1... Nf6 {[%clk 0:02:59.8]} 2. Nf3 {[%clk 0:03:01.3]}
2... g6 {[%clk 0:03:00]} 3. Bg5 {[%clk 0:03:00.4]} 3... Bg7 {[%clk 0:02:59.6]}
4. Nbd2 {[%clk 0:03:00.2]} 4... d5 {[%clk 0:02:58.4]} 5. e3 {[%clk 0:03:00.2]}
5... Kf8 {[%clk 0:02:58.8]} 6. Bd3 {[%clk 0:02:59.3]} 6... h6 {[%clk 0:02:57.9]}
7. Bh4 {[%clk 0:02:59]} 7... Kg8 {[%clk 0:02:58.4]} 8. O-O {[%clk 0:02:58.5]}
8... Kh7 {[%clk 0:02:58.9]} 9. c3 {[%clk 0:02:56.5]} 9... Re8 {[%clk 0:02:59.1]}
10. Qc2 {[%clk 0:02:56]} 10... Kg8 {[%clk 0:02:59.3]} 11. Rfe1 {[%clk
0:02:55.9]} 11... c5 {[%clk 0:02:45.4]} 12. dxc5 {[%clk 0:02:50]} 12... a6
{[%clk 0:02:39.5]} 13. b4 {[%clk 0:02:45.7]} 13... Bg4 {[%clk 0:02:30.7]} 14. h3
{[%clk 0:02:42.6]} 14... Bxf3 {[%clk 0:02:30.4]} 15. Nxf3 {[%clk 0:02:41.8]}
15... Nbd7 {[%clk 0:02:28.6]} 16. Rad1 {[%clk 0:02:39.2]} 16... Qc7 {[%clk
0:02:28.1]} 17. Bg3 {[%clk 0:02:34.6]} 17... Qc8 {[%clk 0:02:27]} 18. a3 {[%clk
0:02:20.6]} 18... e6 {[%clk 0:02:26.9]} 19. c4 {[%clk 0:02:13.4]} 19... b6
{[%clk 0:02:26.6]} 20. cxb6 {[%clk 0:02:01.1]} 20... Nxb6 {[%clk 0:02:27.5]} 21.
c5 {[%clk 0:01:57.2]} 21... Nbd7 {[%clk 0:02:26]} 22. Ne5 {[%clk 0:01:52.8]}
22... Nh5 {[%clk 0:02:23.4]} 23. Nxd7 {[%clk 0:01:51.8]} 23... Qxd7 {[%clk
0:02:24.3]} 24. Bd6 {[%clk 0:01:49]} 24... Rec8 {[%clk 0:02:24]} 25. Qb3 {[%clk
0:01:47.9]} 25... Nf6 {[%clk 0:02:22.7]} 26. Rc1 {[%clk 0:01:46.8]} 26... Ne8
{[%clk 0:02:20.9]} 27. Bg3 {[%clk 0:01:46.1]} 27... Nc7 {[%clk 0:02:18.3]} 28.
Red1 {[%clk 0:01:44.3]} 28... Rab8 {[%clk 0:02:11.3]} 29. a4 {[%clk 0:01:41]}
29... e5 {[%clk 0:01:53.2]} 30. Be2 {[%clk 0:01:28.1]} 30... Qc6 {[%clk
0:01:52.3]} 31. Qa3 {[%clk 0:01:15]} 31... Rd8 {[%clk 0:01:50.2]} 32. Rb1 {[%clk
0:01:12.6]} 32... Kh7 {[%clk 0:01:45]} 33. Rdc1 {[%clk 0:01:11.9]} 33... Rb7
{[%clk 0:01:41.5]} 34. Qb2 {[%clk 0:01:07.4]} 34... Rdb8 {[%clk 0:01:38.1]} 35.
Qc3 {[%clk 0:01:03.2]} 35... d4 {[%clk 0:01:35.9]} 36. exd4 {[%clk 0:01:01.6]}
36... exd4 {[%clk 0:01:36.8]} 37. Qa3 {[%clk 0:01:01.7]} 37... Ra8 {[%clk
0:01:33.1]} 38. Bf3 {[%clk 0:01:01.3]} 38... Nd5 {[%clk 0:01:32.6]} 39. Qa2
{[%clk 0:00:47.2]} 39... Rd7 {[%clk 0:01:31.5]} 40. b5 {[%clk 0:00:43.5]} 40...
axb5 {[%clk 0:01:31.6]} 41. axb5 {[%clk 0:00:43.4]} 41... Rxa2 {[%clk
0:01:32.1]} 42. bxc6 {[%clk 0:00:43.6]} 42... Rd8 {[%clk 0:01:31.8]} 43. Bxd5
{[%clk 0:00:39.2]} 43... Rxd5 {[%clk 0:01:31.3]} 44. c7 {[%clk 0:00:39.4]} 44...
Ra8 {[%clk 0:01:30]} 45. Rb8 {[%clk 0:00:39.4]} 1-0

[Event "*** SCC Grand Prix: Titled Tuesday Blitz"]
[Site "Chess.com"]
[Date "2020.08.04"]
[Round "7"]
[White "ChessArchitect64"]
[Black "Chuchofrio1"]
[Result "0-1"]
[WhiteElo "1888"]
[BlackElo "2290"]
[TimeControl "180+1"]
[EndTime "14:59:52 PDT"]
[Termination "Chuchofrio1 won by resignation"]

1. e4 {[%clk 0:03:00.6]} 1... e5 {[%clk 0:02:54.4]} 2. Nf3 {[%clk 0:02:59.5]}
2... Nc6 {[%clk 0:02:54.8]} 3. Bb5 {[%clk 0:02:59.4]} 3... a6 {[%clk 0:02:54.4]}
4. Bxc6 {[%clk 0:02:59.5]} 4... dxc6 {[%clk 0:02:55.3]} 5. O-O {[%clk
0:02:59.3]} 5... Bg4 {[%clk 0:02:54.5]} 6. d3 {[%clk 0:02:53.5]} 6... Qf6 {[%clk
0:02:51.3]} 7. Nbd2 {[%clk 0:02:53.1]} 7... Bc5 {[%clk 0:02:50.3]} 8. Qe1 {[%clk
0:02:37.4]} 8... Ne7 {[%clk 0:02:48.5]} 9. c3 {[%clk 0:02:31.8]} 9... Rd8 {[%clk
0:02:47.4]} 10. d4 {[%clk 0:02:30.9]} 10... exd4 {[%clk 0:02:47.6]} 11. cxd4
{[%clk 0:02:31.2]} 11... Bxd4 {[%clk 0:02:47.7]} 12. Nxd4 {[%clk 0:02:31.3]}
12... Rxd4 {[%clk 0:02:48.6]} 13. Nb3 {[%clk 0:02:31]} 13... Rd8 {[%clk
0:02:48.2]} 14. Qb4 {[%clk 0:02:24.9]} 14... Qg6 {[%clk 0:02:47.1]} 15. Kh1
{[%clk 0:02:21.5]} 15... Be2 {[%clk 0:02:41.2]} 16. Re1 {[%clk 0:02:16]} 16...
Bd3 {[%clk 0:02:38.2]} 17. Bf4 {[%clk 0:02:07.4]} 17... Rd7 {[%clk 0:02:31.3]}
18. Nc5 {[%clk 0:02:05.4]} 18... Rd8 {[%clk 0:02:26.6]} 19. Bxc7 {[%clk
0:01:57.1]} 19... Rc8 {[%clk 0:02:04.6]} 20. Qxb7 {[%clk 0:01:49.2]} 20... Bb5
{[%clk 0:02:02]} 21. Bd6 {[%clk 0:01:45.2]} 21... Qxd6 {[%clk 0:01:59.3]} 22.
Nxa6 {[%clk 0:01:41.6]} 22... Bxa6 {[%clk 0:01:57]} 23. Qxa6 {[%clk 0:01:41.8]}
23... O-O {[%clk 0:01:57.6]} 24. Rad1 {[%clk 0:01:41.8]} 24... Qg6 {[%clk
0:01:54.1]} 25. Qa3 {[%clk 0:01:31.1]} 25... Qf6 {[%clk 0:01:51.4]} 26. Rd6
{[%clk 0:01:26.4]} 26... Qe5 {[%clk 0:01:50.6]} 27. Rd7 {[%clk 0:01:22.2]} 27...
Ng6 {[%clk 0:01:48.7]} 28. f3 {[%clk 0:01:04.7]} 28... Rfd8 {[%clk 0:01:44.3]}
29. Qd3 {[%clk 0:00:51.8]} 29... Rxd7 {[%clk 0:01:41.7]} 30. Qxd7 {[%clk
0:00:51.8]} 30... Qe6 {[%clk 0:01:42.2]} 31. Qa7 {[%clk 0:00:43.2]} 31... Rd8
{[%clk 0:01:39.4]} 32. b3 {[%clk 0:00:41.1]} 32... Nf4 {[%clk 0:01:37.9]} 33.
Qc7 {[%clk 0:00:37.5]} 33... Qd6 {[%clk 0:01:35.1]} 34. Qxd6 {[%clk 0:00:28.4]}
34... Rxd6 {[%clk 0:01:36]} 35. Rc1 {[%clk 0:00:28.7]} 35... Ne2 {[%clk
0:01:35]} 36. Re1 {[%clk 0:00:25.2]} 36... Nf4 {[%clk 0:01:35]} 37. g3 {[%clk
0:00:24.9]} 37... Nd3 {[%clk 0:01:35.2]} 38. Rd1 {[%clk 0:00:22.8]} 38... Nf2+
{[%clk 0:01:35.3]} 39. Kg2 {[%clk 0:00:21.6]} 39... Nxd1 {[%clk 0:01:36.2]} 0-1

[Event "*** SCC Grand Prix: Titled Tuesday Blitz"]
[Site "Chess.com"]
[Date "2020.08.04"]
[Round "7"]
[White "Sn00pPawn"]
[Black "dopolian"]
[Result "0-1"]
[WhiteElo "1990"]
[BlackElo "2498"]
[TimeControl "180+1"]
[EndTime "15:00:06 PDT"]
[Termination "dopolian won by resignation"]

1. e4 {[%clk 0:03:00.9]} 1... Nc6 {[%clk 0:02:56.8]} 2. Nf3 {[%clk 0:02:59.2]}
2... d6 {[%clk 0:02:55.9]} 3. d4 {[%clk 0:02:57.5]} 3... Bg4 {[%clk 0:02:55.7]}
4. d5 {[%clk 0:02:47]} 4... Ne5 {[%clk 0:02:54.4]} 5. Be2 {[%clk 0:02:44.2]}
5... Nxf3+ {[%clk 0:02:54]} 6. Bxf3 {[%clk 0:02:38.5]} 6... Bxf3 {[%clk
0:02:50.8]} 7. Qxf3 {[%clk 0:02:37.2]} 7... Nf6 {[%clk 0:02:49]} 8. c4 {[%clk
0:02:34.1]} 8... g6 {[%clk 0:02:34.1]} 9. Bd2 {[%clk 0:02:02.2]} 9... Bg7 {[%clk
0:02:31.9]} 10. Bc3 {[%clk 0:02:02.5]} 10... O-O {[%clk 0:02:31.5]} 11. O-O
{[%clk 0:02:02.1]} 11... a5 {[%clk 0:02:19.2]} 12. a4 {[%clk 0:01:55]} 12... Nd7
{[%clk 0:02:13.8]} 13. Bxg7 {[%clk 0:01:38.8]} 13... Kxg7 {[%clk 0:02:14.7]} 14.
Nd2 {[%clk 0:01:38.5]} 14... e5 {[%clk 0:02:12.2]} 15. dxe6 {[%clk 0:01:30.4]}
15... fxe6 {[%clk 0:02:11.4]} 16. Qc3+ {[%clk 0:01:28.8]} 16... e5 {[%clk
0:02:10]} 17. f4 {[%clk 0:01:27]} 17... Qf6 {[%clk 0:02:02.9]} 18. f5 {[%clk
0:01:25]} 18... Qe7 {[%clk 0:01:49.2]} 19. Rf3 {[%clk 0:01:13.9]} 19... Rf6
{[%clk 0:01:35.5]} 20. Raf1 {[%clk 0:01:12.2]} 20... Raf8 {[%clk 0:01:35.6]} 21.
Qxa5 {[%clk 0:01:08.3]} 21... b6 {[%clk 0:01:29.5]} 22. Qc3 {[%clk 0:00:47.5]}
22... Nc5 {[%clk 0:00:51.9]} 23. b3 {[%clk 0:00:46.4]} 23... Qf7 {[%clk
0:00:46.3]} 24. fxg6 {[%clk 0:00:41.6]} 24... Rxf3 {[%clk 0:00:23.1]} 25. gxf7
{[%clk 0:00:40.1]} 25... Rxc3 {[%clk 0:00:22.4]} 0-1

[Event "*** SCC Grand Prix: Titled Tuesday Blitz"]
[Site "Chess.com"]
[Date "2020.08.04"]
[Round "7"]
[White "Martins-BR"]
[Black "wild_cat99"]
[Result "0-1"]
[WhiteElo "2222"]
[BlackElo "2644"]
[TimeControl "180+1"]
[EndTime "15:00:07 PDT"]
[Termination "wild_cat99 won by resignation"]

1. e4 {[%clk 0:03:00.9]} 1... c5 {[%clk 0:03:00]} 2. Nf3 {[%clk 0:03:00.4]} 2...
d6 {[%clk 0:03:00.5]} 3. d4 {[%clk 0:02:59.7]} 3... cxd4 {[%clk 0:03:01.4]} 4.
Nxd4 {[%clk 0:03:00]} 4... Nf6 {[%clk 0:03:02.3]} 5. Nc3 {[%clk 0:02:59.4]} 5...
a6 {[%clk 0:03:02.7]} 6. Bg5 {[%clk 0:02:58.2]} 6... Nbd7 {[%clk 0:03:02.4]} 7.
f4 {[%clk 0:02:57.3]} 7... Qc7 {[%clk 0:03:02.6]} 8. Qf3 {[%clk 0:02:56]} 8...
h6 {[%clk 0:03:03]} 9. Bxf6 {[%clk 0:02:55.2]} 9... Nxf6 {[%clk 0:03:03.9]} 10.
f5 {[%clk 0:02:54.1]} 10... Qc5 {[%clk 0:03:02.3]} 11. O-O-O {[%clk 0:02:53.9]}
11... g5 {[%clk 0:03:02.7]} 12. fxg6 {[%clk 0:02:52.4]} 12... Bg4 {[%clk
0:03:02.9]} 13. gxf7+ {[%clk 0:02:52.2]} 13... Kxf7 {[%clk 0:03:03.8]} 14. Qd3
{[%clk 0:02:51.5]} 14... Bxd1 {[%clk 0:03:04.1]} 15. Nxd1 {[%clk 0:02:51.4]}
15... Bg7 {[%clk 0:02:46.1]} 16. Nf5 {[%clk 0:02:45.7]} 16... b5 {[%clk
0:02:32.8]} 17. Be2 {[%clk 0:02:39.6]} 17... Rac8 {[%clk 0:02:26.9]} 18. Rf1
{[%clk 0:02:37.2]} 18... Rhf8 {[%clk 0:02:10.5]} 19. c3 {[%clk 0:02:17.6]} 19...
Qe5 {[%clk 0:01:55.7]} 20. Nxg7 {[%clk 0:01:53.9]} 20... Kxg7 {[%clk 0:01:53.3]}
21. Bf3 {[%clk 0:01:50.8]} 21... b4 {[%clk 0:01:49.1]} 22. Kb1 {[%clk
0:01:49.5]} 22... Rb8 {[%clk 0:01:12.7]} 23. cxb4 {[%clk 0:01:42.6]} 23... Rxb4
{[%clk 0:01:08.6]} 24. Qxa6 {[%clk 0:01:40.9]} 24... Nxe4 {[%clk 0:01:07]} 25.
Qe2 {[%clk 0:01:05.1]} 25... Rd4 {[%clk 0:01:04.4]} 26. Re1 {[%clk 0:00:34.1]}
26... Nd2+ {[%clk 0:01:01.1]} 27. Kc2 {[%clk 0:00:26.7]} 27... Rc8+ {[%clk
0:00:58.2]} 28. Nc3 {[%clk 0:00:25.8]} 28... Qf5+ {[%clk 0:00:58]} 29. Be4
{[%clk 0:00:07.6]} 29... Nxe4 {[%clk 0:00:58.2]} 0-1

[Event "*** SCC Grand Prix: Titled Tuesday Blitz"]
[Site "Chess.com"]
[Date "2020.08.04"]
[Round "7"]
[White "lacafi"]
[Black "Artem_Sadovsky"]
[Result "0-1"]
[WhiteElo "2055"]
[BlackElo "2395"]
[TimeControl "180+1"]
[EndTime "15:00:21 PDT"]
[Termination "Artem_Sadovsky won by resignation"]

1. d4 {[%clk 0:03:00.9]} 1... g6 {[%clk 0:02:56.9]} 2. c4 {[%clk 0:02:58.4]}
2... Bg7 {[%clk 0:02:57.2]} 3. Nc3 {[%clk 0:02:57.9]} 3... d6 {[%clk 0:02:57.8]}
4. e4 {[%clk 0:02:57.7]} 4... e5 {[%clk 0:02:58.4]} 5. Nf3 {[%clk 0:02:51.7]}
5... Nc6 {[%clk 0:02:57]} 6. dxe5 {[%clk 0:02:51.1]} 6... Nxe5 {[%clk
0:02:54.9]} 7. Nxe5 {[%clk 0:02:45.5]} 7... Bxe5 {[%clk 0:02:55.5]} 8. Qc2
{[%clk 0:02:44.5]} 8... Ne7 {[%clk 0:02:55.6]} 9. Be2 {[%clk 0:02:44.5]} 9...
O-O {[%clk 0:02:55.4]} 10. O-O {[%clk 0:02:42.9]} 10... f5 {[%clk 0:02:54.4]}
11. exf5 {[%clk 0:02:25]} 11... Nxf5 {[%clk 0:02:45.4]} 12. Qe4 {[%clk
0:01:46.9]} 12... Re8 {[%clk 0:02:10.8]} 13. Qb1 {[%clk 0:01:20.9]} 13... Bxc3
{[%clk 0:01:44.3]} 14. bxc3 {[%clk 0:01:20.5]} 14... Rxe2 {[%clk 0:01:40.4]} 15.
Qd3 {[%clk 0:00:50]} 15... Qe7 {[%clk 0:01:01]} 16. Be3 {[%clk 0:00:45.6]} 16...
Rxe3 {[%clk 0:00:27.7]} 17. fxe3 {[%clk 0:00:44.8]} 17... Qxe3+ {[%clk
0:00:19.2]} 18. Qxe3 {[%clk 0:00:44.8]} 18... Nxe3 {[%clk 0:00:19.3]} 19. Rfe1
{[%clk 0:00:28.2]} 19... Nc2 {[%clk 0:00:18.1]} 20. Re8+ {[%clk 0:00:16.2]}
20... Kf7 {[%clk 0:00:16.1]} 0-1